bitfinex/quotes_SOLUSD_20230103
["timestamp","ask_amount","ask_price","bid_price","bid_amount"]
[1672787045415,24.9695,13.348,13.331,23.2913]
[1672787045623,116.6190733,13.347,13.331,23.2913]
[1672787045942,106.35238506,13.346,13.331,23.2913]
[1672787046257,30.0,13.343,13.318,593.59578414]
[1672787046450,165.55,13.342,13.318,704.39948414]
[1672787046662,30.0,13.34,13.319,593.59578414]
[1672787046988,30.0,13.338,13.319,593.59578414]
[1672787047207,30.0,13.336,13.319,593.59578414]
[1672787047391,76.29,13.335,13.319,593.59578414]
[1672787047604,76.29,13.335,13.32,30.0]
[1672787047825,30.0,13.334,13.319,593.59578414]
[1672787048458,118.74587498,13.334,13.319,593.59578414]
[1672787048671,166.4949738,13.334,13.319,593.59578414]
[1672787048871,166.4949738,13.334,13.318,110.8037]
[1672787049081,30.0,13.332,13.318,110.8037]
[1672787049296,30.0,13.332,13.317,47.3123]
[1672787049504,45.27250807,13.331,13.317,47.3123]
[1672787049827,95.97331176,13.332,13.317,47.3123]
[1672787050021,20.0,13.335,13.318,30.0]
[1672787051178,20.0,13.336,13.318,29.5]
[1672787051714,42.7716737,13.335,13.318,40.58137784]
[1672787051916,20.0,13.334,13.318,29.5]
[1672787052240,20.0,13.336,13.318,29.5]
[1672787052876,20.0,13.336,13.317,77.3123]
[1672787053072,76.29,13.336,13.317,77.3123]
[1672787054767,76.29,13.336,13.318,30.0]
[1672787055299,76.29,13.336,13.317,77.3123]
[1672787055719,30.0,13.335,13.317,47.3123]
[1672787055931,20.0,13.334,13.317,47.3123]
[1672787056342,44.45809313,13.333,13.317,47.3123]
[1672787056750,20.0,13.334,13.317,47.3123]
[1672787057293,45.48171309,13.333,13.317,58.39367784]
[1672787057502,45.48171309,13.333,13.318,50.0]
[1672787057712,23.062,13.337,13.318,50.0]
[1672787057933,23.062,13.337,13.319,11.08137784]
[1672787058237,23.062,13.337,13.32,20.0]
[1672787058454,23.062,13.337,13.321,30.0]
[1672787058651,23.062,13.337,13.322,20.0]
[1672787058851,23.062,13.337,13.322,31.08137784]
[1672787059066,23.062,13.337,13.323,41.08137784]
[1672787059489,23.062,13.337,13.324,31.08137784]
[1672787059695,23.062,13.337,13.325,30.0]
[1672787060127,23.062,13.337,13.326,20.0]
[1672787060853,181.1852,13.342,13.326,20.0]
[1672787061054,156.3755,13.342,13.324,67.8472]
[1672787061481,30.0,13.341,13.324,67.8472]
[1672787062860,78.22421294,13.341,13.324,67.8472]
[1672787063073,30.0,13.339,13.324,67.8472]
[1672787063290,50.48486415,13.338,13.324,67.8472]
[1672787063592,50.48486415,13.338,13.321,119.5072]
[1672787063593,52.87917963,13.336,13.321,119.5072]
[1672787063835,50.0,13.337,13.321,119.5072]
[1672787063836,52.87917963,13.334,13.321,119.5072]
[1672787064002,52.87917963,13.332,13.321,119.5072]
[1672787064648,105.43931845,13.332,13.321,119.5072]
[1672787065278,52.87917963,13.332,13.321,119.5072]
[1672787066103,52.87917963,13.334,13.321,119.5072]
[1672787066325,30.0,13.333,13.321,119.5072]
[1672787066550,52.87917963,13.332,13.321,119.5072]
[1672787067613,52.87917963,13.334,13.321,119.5072]
[1672787068332,30.0,13.335,13.321,119.5072]
[1672787068645,30.0,13.333,13.321,119.0072]
[1672787068837,30.0,13.331,13.321,119.0072]
[1672787069046,30.0,13.329,13.317,47.8472]
[1672787069256,48.88436318,13.328,13.317,47.8472]
[1672787069895,48.88436318,13.328,13.316,23.7462]
[1672787070220,48.88436318,13.328,13.317,20.0]
[1672787070533,48.88436318,13.328,13.317,19.0]
[1672787070741,50.0,13.327,13.313,593.59578414]
[1672787070957,53.52109961,13.326,13.314,30.0]
[1672787071383,54.7255486,13.33,13.314,30.0]
[1672787071603,54.7255486,13.33,13.313,47.5213]
[1672787072208,54.7255486,13.33,13.316,20.0]
[1672787072833,54.7255486,13.33,13.317,30.0]
[1672787073167,54.7255486,13.331,13.317,41.08137784]
[1672787073591,108.3338,13.334,13.319,30.0]
[1672787073804,42.85721498,13.333,13.32,20.0]
[1672787074009,108.3338,13.334,13.32,31.08137784]
[1672787074204,30.0,13.338,13.32,31.08137784]
[1672787074412,43.60392015,13.337,13.32,31.08137784]
[1672787074635,30.0,13.34,13.321,30.0]
[1672787074841,30.0,13.34,13.322,20.0]
[1672787075267,220.2437,13.341,13.322,20.0]
[1672787075672,220.2437,13.341,13.323,30.0]
[1672787075902,220.2437,13.341,13.324,20.0]
[1672787076850,163.9837,13.341,13.325,30.0]
[1672787077059,163.9837,13.341,13.326,20.0]
[1672787077794,163.9837,13.341,13.326,19.0]
[1672787079781,85.47024358,13.34,13.321,11.08137784]
[1672787079985,110.457018,13.339,13.322,11.08137784]
[1672787080192,30.0,13.337,13.304,30.0]
[1672787080408,200.77634106,13.336,13.304,30.0]
[1672787080630,30.0,13.335,13.304,30.0]
[1672787080838,30.0,13.333,13.304,30.0]
[1672787081038,140.57339388,13.332,13.304,30.0]
[1672787081252,30.0,13.331,13.304,30.0]
[1672787081457,120.58339388,13.33,13.304,30.0]
[1672787081782,64.27339388,13.327,13.304,30.0]
[1672787081992,64.27339388,13.325,13.304,30.0]
[1672787082185,64.27339388,13.322,13.304,30.0]
[1672787082398,30.0,13.321,13.304,30.0]
[1672787082631,64.27339388,13.32,13.304,30.0]
[1672787083248,30.0,13.321,13.304,30.0]
[1672787083249,64.27339388,13.318,13.304,30.0]
[1672787083559,64.27339388,13.318,13.306,30.0]
[1672787084191,64.27339388,13.32,13.306,30.0]
[1672787084721,64.27339388,13.322,13.306,30.0]
[1672787084942,64.27339388,13.322,13.306,113.9385]
[1672787085159,64.27339388,13.322,13.307,556.01395294]
[1672787085360,16.04,13.32,13.297,556.01395294]
[1672787085667,16.04,13.32,13.281,285.71912824]
[1672787085668,79.20590394,13.313,13.281,285.71912824]
[1672787085879,135.54279309,13.319,13.28,728.87413214]
[1672787085880,79.20590394,13.31,13.285,93.0441]
[1672787086097,79.20590394,13.311,13.286,69.5631]
[1672787086285,79.20590394,13.311,13.287,30.0]
[1672787086498,79.20590394,13.311,13.3,7.99]
[1672787087133,94.6894,13.318,13.3,7.99]
[1672787087134,79.20590394,13.317,13.3,7.99]
[1672787087672,79.20590394,13.317,13.301,20.0]
[1672787088613,79.20590394,13.317,13.302,11.08137784]
[1672787088932,79.20590394,13.317,13.303,50.0]
[1672787089357,79.20590394,13.317,13.303,61.08137784]
[1672787090707,79.20590394,13.317,13.303,50.0]
[1672787091031,79.20590394,13.317,13.303,20.0]
[1672787091224,79.20590394,13.317,13.301,20.0]
[1672787092393,79.20590394,13.317,13.298,47.5196]
[1672787092592,30.0,13.315,13.298,47.5196]
[1672787092810,265.53430394,13.314,13.298,47.5196]
[1672787093119,265.53430394,13.314,13.298,77.5196]
[1672787093333,209.15430394,13.314,13.298,58.60097784]
[1672787093543,209.15430394,13.314,13.298,47.5196]
[1672787094065,79.20590394,13.312,13.298,47.5196]
[1672787094392,79.20590394,13.312,13.297,23.7304]
[1672787094802,79.20590394,13.312,13.296,115.2376]
[1672787095541,56.39,13.311,13.295,43.0918906]
[1672787095759,30.0,13.309,13.295,43.0918906]
[1672787095961,79.20590394,13.308,13.296,20.0]
[1672787096163,56.41,13.307,13.295,43.0918906]
[1672787096378,109.20590394,13.306,13.295,43.0918906]
[1672787096583,76.42,13.305,13.295,43.0918906]
[1672787096798,109.20590394,13.304,13.295,43.0918906]
[1672787097008,30.0,13.302,13.295,43.0918906]
[1672787098170,42.2109313,13.301,13.295,43.0918906]
[1672787098380,30.0,13.3,13.295,43.0918906]
[1672787098793,30.0,13.302,13.295,43.0918906]
[1672787099210,45.59867771,13.301,13.295,43.0918906]
[1672787100264,49.27152397,13.299,13.295,43.0918906]
[1672787100495,56.45,13.298,13.295,43.0918906]
[1672787100698,49.27152397,13.297,13.295,43.0918906]
[1672787100910,49.27152397,13.3,13.295,43.0918906]
[1672787101105,49.27152397,13.302,13.295,43.0918906]
[1672787101314,49.27152397,13.303,13.295,43.0918906]
[1672787102487,46.8854,13.305,13.295,43.0918906]
[1672787102488,49.27152397,13.304,13.295,43.0918906]
[1672787102679,105.69152397,13.304,13.295,43.0918906]
[1672787102885,49.27152397,13.304,13.295,43.0918906]
[1672787103626,49.27152397,13.304,13.295,42.0918906]
[1672787105955,24.3138,13.306,13.297,30.0]
[1672787106356,49.27152397,13.305,13.297,30.0]
[1672787106777,24.3138,13.306,13.297,30.0]
[1672787107091,49.27152397,13.305,13.297,30.0]
[1672787107301,24.3138,13.306,13.297,30.0]
[1672787107527,42.16361153,13.305,13.297,30.0]
[1672787107837,24.3138,13.306,13.297,30.0]
[1672787111528,24.3138,13.306,13.3,10.27]
[1672787111739,56.34,13.323,13.3,10.27]
[1672787111740,79.31705365,13.322,13.3,10.27]
[1672787111953,30.0,13.32,13.3,10.27]
[1672787112164,49.31705365,13.319,13.301,20.0]
[1672787112373,30.0,13.32,13.301,20.0]
[1672787112799,47.2567,13.32,13.301,20.0]
[1672787113651,30.0,13.318,13.301,20.0]
[1672787113965,44.70476614,13.317,13.301,20.0]
[1672787114364,30.0,13.318,13.301,20.0]
[1672787116686,133.6167,13.319,13.301,20.0]
[1672787118045,133.6167,13.319,13.301,27.191]
[1672787118492,42.2912679,13.318,13.301,38.27237784]
[1672787118690,47.2567,13.319,13.301,38.27237784]
[1672787120378,30.0,13.318,13.301,38.27237784]
[1672787120983,103.6167,13.319,13.301,38.27237784]
[1672787121409,30.0,13.317,13.301,38.27237784]
[1672787123297,42.96266313,13.316,13.301,38.27237784]
[1672787123518,30.0,13.318,13.301,38.27237784]
[1672787123723,43.12528755,13.317,13.301,38.27237784]
[1672787124045,43.12528755,13.318,13.301,38.27237784]
[1672787126047,20.0,13.317,13.301,7.191]
[1672787126257,30.0,13.315,13.298,159.0355]
[1672787126478,30.0,13.313,13.298,159.0355]
[1672787126694,43.95092287,13.312,13.297,22.8936]
[1672787126894,162.13552287,13.312,13.294,124.5844]
[1672787127101,208.41022287,13.312,13.295,72.0918906]
[1672787127513,30.0,13.311,13.295,42.0918906]
[1672787127845,43.95092287,13.311,13.295,72.0918906]
[1672787128034,43.95092287,13.311,13.296,20.0]
[1672787128242,118.1846,13.312,13.297,13.96]
[1672787128473,118.1846,13.312,13.298,50.0]
[1672787128792,30.0,13.317,13.298,50.0]
[1672787129104,43.75823529,13.316,13.3,12.84]
[1672787129308,220.3129,13.318,13.301,20.0]
[1672787129512,163.9529,13.318,13.301,20.0]
[1672787129721,163.9529,13.318,13.302,30.0]
[1672787129949,163.9529,13.318,13.303,20.0]
[1672787130147,56.37,13.317,13.303,20.0]
[1672787130353,220.3129,13.318,13.303,20.0]
[1672787130563,163.9529,13.318,13.301,20.0]
[1672787130992,220.3129,13.318,13.301,20.0]
[1672787131195,220.3129,13.318,13.3,12.84]
[1672787131407,88.71931424,13.317,13.298,30.0]
[1672787131721,76.37,13.316,13.298,30.0]
[1672787132044,76.37,13.316,13.297,68.6501]
[1672787132045,48.6317,13.315,13.297,38.6501]
[1672787132239,125.0117,13.314,13.297,38.6501]
[1672787132452,68.6317,13.314,13.3,12.84]
[1672787132770,56.37,13.315,13.301,20.0]
[1672787132975,23.6615,13.316,13.301,20.0]
[1672787133189,23.6615,13.316,13.298,30.0]
[1672787133392,125.0017,13.315,13.298,30.0]
[1672787133617,44.55034425,13.314,13.298,30.0]
[1672787133823,56.38,13.313,13.297,38.6501]
[1672787134150,45.20684785,13.312,13.297,68.6501]
[1672787134464,45.20684785,13.312,13.297,43.96]
[1672787134678,45.20684785,13.312,13.297,13.96]
[1672787134990,44.8094042,13.312,13.297,13.96]
[1672787135202,86.39,13.311,13.297,13.96]
[1672787135612,30.0,13.31,13.297,13.96]
[1672787136028,56.39,13.311,13.297,13.96]
[1672787136666,43.30087015,13.31,13.297,13.96]
[1672787138337,167.2162,13.311,13.297,13.96]
[1672787138548,42.80853883,13.31,13.297,13.96]
[1672787138753,56.4,13.309,13.297,13.96]
[1672787138984,20.0,13.308,13.297,13.96]
[1672787139195,125.88575212,13.307,13.297,13.96]
[1672787139416,30.0,13.306,13.297,13.96]
[1672787139615,76.42,13.305,13.297,13.96]
[1672787140041,30.0,13.304,13.297,13.96]
[1672787140264,56.43,13.303,13.297,13.96]
[1672787140572,30.0,13.302,13.297,13.96]
[1672787140764,30.0,13.3,13.297,13.96]
[1672787140975,30.0,13.3,13.295,42.0918906]
[1672787141619,69.47575212,13.301,13.295,42.0918906]
[1672787142151,30.0,13.303,13.295,42.0918906]
[1672787142347,69.47575212,13.302,13.295,42.0918906]
[1672787142670,69.47575212,13.3,13.295,42.0918906]
[1672787142878,30.0,13.299,13.295,42.0918906]
[1672787143100,69.47575212,13.298,13.295,42.0918906]
[1672787143712,69.47575212,13.3,13.295,42.0918906]
[1672787145082,69.47575212,13.302,13.295,42.0918906]
[1672787145396,69.47575212,13.303,13.295,42.0918906]
[1672787147191,47.8579,13.305,13.296,20.0]
[1672787148144,47.8579,13.305,13.297,30.0]
[1672787148458,47.8579,13.305,13.296,20.0]
[1672787152459,47.8579,13.305,13.295,42.0918906]
[1672787152675,119.52395734,13.304,13.295,42.0918906]
[1672787152986,30.0,13.303,13.295,42.0918906]
[1672787153176,56.43,13.302,13.295,42.0918906]
[1672787153387,30.0,13.301,13.295,42.0918906]
[1672787154442,56.44,13.3,13.295,42.0918906]
[1672787154862,30.0,13.299,13.295,0.0018906]
[1672787155178,30.0,13.297,13.273,30.0]
[1672787155389,99.12471433,13.296,13.275,91.2581906]
[1672787155596,50.0,13.295,13.275,91.2581906]
[1672787155808,30.0,13.293,13.275,91.2581906]
[1672787156129,49.4193,13.292,13.276,50.0]
[1672787156547,49.4193,13.292,13.276,30.0]
[1672787157065,49.4193,13.292,13.275,121.2581906]
[1672787157274,49.4193,13.292,13.275,91.2581906]
[1672787157735,49.4193,13.292,13.276,30.0]
[1672787157920,49.4193,13.292,13.277,20.0]
[1672787158120,49.4193,13.292,13.275,91.2581906]
[1672787158331,49.4193,13.292,13.275,121.2581906]
[1672787158769,49.4193,13.292,13.276,30.0]
[1672787159695,49.4193,13.292,13.277,20.0]
[1672787162550,56.45,13.297,13.281,30.0]
[1672787162746,116.7545,13.297,13.282,20.0]
[1672787163174,116.7545,13.297,13.282,31.08137784]
[1672787164457,116.7545,13.297,13.283,30.0]
[1672787164675,116.7545,13.297,13.284,20.0]
[1672787164865,116.7545,13.297,13.285,30.0]
[1672787165080,116.7545,13.297,13.286,20.0]
[1672787165611,116.7545,13.297,13.286,31.08137784]
[1672787166020,116.7545,13.297,13.286,20.0]
[1672787166866,116.7545,13.297,13.286,31.08137784]
[1672787168009,116.7545,13.297,13.286,20.0]
[1672787168425,116.7545,13.297,13.283,20.0]
[1672787168652,116.7545,13.297,13.282,20.0]
[1672787168858,164.7529,13.297,13.282,20.0]
[1672787169485,164.7529,13.297,13.283,12.63]
[1672787169701,164.7529,13.297,13.284,20.0]
[1672787170750,164.7529,13.297,13.282,20.0]
[1672787173603,56.46,13.296,13.282,20.0]
[1672787173913,50.0,13.295,13.277,14.69]
[1672787174127,50.0,13.295,13.275,43.0918906]
[1672787174128,56.46,13.294,13.275,43.0918906]
[1672787174328,103.6039,13.294,13.275,43.0918906]
[1672787174648,30.0,13.293,13.275,43.0918906]
[1672787174847,56.47,13.292,13.275,43.0918906]
[1672787175052,103.6139,13.292,13.275,73.0918906]
[1672787175478,103.6139,13.292,13.276,30.0]
[1672787176545,24.6622,13.294,13.28,10.3]
[1672787176754,24.6622,13.294,13.281,20.0]
[1672787179065,24.6622,13.294,13.281,31.08137784]
[1672787181573,24.6622,13.294,13.282,30.0]
[1672787181788,24.6622,13.294,13.283,20.0]
[1672787181986,24.6622,13.294,13.284,30.0]
[1672787182324,24.6622,13.294,13.285,20.0]
[1672787182513,24.6622,13.294,13.285,31.08137784]
[1672787182720,56.42,13.304,13.286,11.08137784]
[1672787182954,102.2664,13.307,13.29,10.3]
[1672787183150,155.392,13.307,13.291,20.0]
[1672787183364,56.41,13.306,13.291,31.08137784]
[1672787183686,56.41,13.306,13.292,11.08137784]
[1672787183895,56.41,13.306,13.293,20.0]
[1672787184832,56.41,13.306,13.291,20.0]
[1672787185249,155.392,13.307,13.292,11.08137784]
[1672787185584,155.392,13.307,13.293,20.0]
[1672787186109,56.41,13.306,13.293,20.0]
[1672787186309,30.0,13.305,13.293,20.0]
[1672787186526,56.41,13.306,13.293,20.0]
[1672787187477,30.0,13.305,13.293,20.0]
[1672787187903,86.41,13.306,13.293,20.0]
[1672787189364,56.41,13.306,13.293,20.0]
[1672787190824,30.0,13.305,13.293,20.0]
[1672787191993,86.41,13.306,13.293,20.0]
[1672787192733,56.41,13.306,13.293,20.0]
[1672787193658,56.41,13.306,13.294,11.08137784]
[1672787193869,155.392,13.307,13.294,11.08137784]
[1672787194088,56.41,13.306,13.295,20.0]
[1672787194728,56.41,13.306,13.293,20.0]
[1672787194924,155.392,13.307,13.293,20.0]
[1672787195334,155.392,13.307,13.294,11.08137784]
[1672787195551,155.392,13.307,13.295,30.0]
[1672787195763,155.392,13.307,13.295,50.0]
[1672787195973,155.392,13.307,13.296,11.08137784]
[1672787196183,155.392,13.307,13.297,20.0]
[1672787196604,155.392,13.307,13.298,11.08137784]
[1672787197655,395.9,13.317,13.298,11.08137784]
[1672787197656,56.37,13.316,13.3,12.84]
[1672787197865,115.3044,13.316,13.302,30.0]
[1672787198080,56.37,13.315,13.303,20.0]
[1672787198296,56.37,13.315,13.303,31.08137784]
[1672787199542,56.37,13.315,13.303,20.0]
[1672787199753,56.37,13.315,13.302,20.0]
[1672787200723,56.37,13.315,13.303,11.08137784]
[1672787201242,56.37,13.315,13.304,20.0]
[1672787202070,56.37,13.315,13.303,20.0]
[1672787202495,56.37,13.315,13.303,31.08137784]
[1672787204174,56.37,13.315,13.299,23.2283]
[1672787204175,20.0,13.314,13.299,23.2283]
[1672787204389,56.38,13.313,13.299,11.08137784]
[1672787205019,56.38,13.313,13.294,30.0]
[1672787205224,46.4986,13.312,13.294,30.0]
[1672787205443,56.39,13.311,13.294,41.08137784]
[1672787205653,56.39,13.311,13.295,11.08137784]
[1672787205867,46.4986,13.31,13.295,11.08137784]
[1672787206057,46.4986,13.31,13.296,20.0]
[1672787206483,46.4986,13.31,13.296,31.08137784]
[1672787208505,56.39,13.312,13.3,12.84]
[1672787208715,23.8452,13.313,13.301,20.0]
[1672787209236,23.8452,13.313,13.302,11.08137784]
[1672787209639,23.8452,13.313,13.303,20.0]
[1672787210488,56.39,13.312,13.292,30.0]
[1672787210706,104.2771,13.312,13.295,24.9259]
[1672787210909,104.2771,13.312,13.296,11.08137784]
[1672787211957,104.2771,13.312,13.296,41.08137784]
[1672787212174,104.2771,13.312,13.297,20.0]
[1672787213231,104.2771,13.312,13.297,31.08137784]
[1672787215031,47.8871,13.312,13.3,64.2]
[1672787215249,47.8871,13.312,13.301,20.0]
[1672787215441,47.8871,13.312,13.302,30.0]
[1672787215646,47.8871,13.312,13.303,20.0]
[1672787215863,47.8871,13.312,13.303,31.08137784]
[1672787216082,47.8871,13.312,13.304,70.02197436]
[1672787216296,47.8871,13.312,13.305,50.0]
[1672787216488,47.8871,13.312,13.305,61.08137784]
[1672787216699,47.8871,13.312,13.307,30.0]
[1672787216924,115.3044,13.316,13.307,30.0]
[1672787217138,115.3044,13.316,13.307,41.08137784]
[1672787217762,115.3044,13.316,13.307,11.08137784]
[1672787219348,115.3044,13.316,13.305,50.0]
[1672787219757,115.3044,13.316,13.306,11.08137784]
[1672787219970,115.3044,13.316,13.307,20.0]
[1672787222182,115.3044,13.316,13.304,20.0]
[1672787222502,115.3044,13.316,13.308,11.08137784]
[1672787222811,46.3621,13.317,13.303,30.0]
[1672787223014,76.37,13.316,13.303,11.08137784]
[1672787223343,76.37,13.316,13.278,123.2185169]
[1672787223551,46.3621,13.315,13.298,11.08137784]
[1672787223760,56.38,13.314,13.298,11.08137784]
[1672787223961,122.7421,13.314,13.298,11.08137784]
[1672787225127,109.6257,13.316,13.3,12.74]
[1672787225538,109.6257,13.316,13.301,79.84833539]
[1672787225745,109.6257,13.316,13.301,156.30659191]
[1672787225949,109.6257,13.316,13.302,11.08137784]
[1672787226161,109.6257,13.316,13.303,20.0]
[1672787226371,109.6257,13.316,13.303,50.0]
[1672787226588,109.6257,13.316,13.304,11.08137784]
[1672787227112,109.6257,13.316,13.305,50.0]
[1672787227531,109.6257,13.316,13.306,11.08137784]
[1672787228055,109.6257,13.316,13.307,20.0]
[1672787228266,109.6257,13.316,13.308,30.0]
[1672787228474,109.6257,13.316,13.308,41.08137784]
[1672787228680,109.6257,13.316,13.309,11.08137784]
[1672787229221,56.32,13.328,13.308,30.0]
[1672787229435,164.6958,13.328,13.308,30.0]
[1672787229625,164.6958,13.328,13.309,31.08137784]
[1672787229836,108.3758,13.328,13.31,69.24]
[1672787230046,108.3758,13.328,13.311,20.0]
[1672787230274,108.3758,13.328,13.312,56.39]
[1672787230480,108.3758,13.328,13.313,20.0]
[1672787230688,56.32,13.327,13.31,56.4]
[1672787230893,56.32,13.327,13.308,30.0]
[1672787231096,109.82689078,13.327,13.309,11.08137784]
[1672787231307,12.84,13.32,13.308,30.0]
[1672787231528,56.36,13.319,13.313,30.0]
[1672787231744,56.36,13.319,13.308,30.0]
[1672787232147,56.36,13.319,13.303,146.3226]
[1672787232575,20.0,13.318,13.303,116.3226]
[1672787232813,56.37,13.317,13.302,30.0]
[1672787233005,20.0,13.316,13.294,30.0]
[1672787233219,56.37,13.315,13.294,30.0]
[1672787233421,20.0,13.314,13.296,41.08137784]
[1672787233632,56.38,13.313,13.296,41.08137784]
[1672787233842,56.38,13.313,13.298,30.0]
[1672787234167,56.38,13.313,13.299,11.08137784]
[1672787234355,117.3294,13.314,13.299,11.08137784]
[1672787234567,56.38,13.313,13.298,30.0]
[1672787235111,56.38,13.313,13.297,11.08137784]
[1672787235301,56.38,13.313,13.295,40.13158985]
[1672787235302,117.3294,13.314,13.299,11.08137784]
[1672787235515,117.3294,13.314,13.299,41.08137784]
[1672787235949,117.3294,13.314,13.3,31.08137784]
[1672787236366,117.3294,13.314,13.301,11.08137784]
[1672787236573,117.3294,13.314,13.302,20.0]
[1672787237108,117.3294,13.314,13.303,41.08137784]
[1672787237301,117.3294,13.314,13.304,20.0]
[1672787237502,117.3294,13.314,13.304,31.08137784]
[1672787238679,117.3294,13.314,13.304,20.0]
[1672787239302,117.3294,13.314,13.305,30.0]
[1672787239513,117.3294,13.314,13.306,20.0]
[1672787239722,56.36,13.319,13.306,20.0]
[1672787239928,56.36,13.319,13.306,31.08137784]
[1672787240140,56.34,13.324,13.306,31.08137784]
[1672787241932,119.7964,13.325,13.31,12.84]
[1672787242157,56.34,13.324,13.312,30.0]
[1672787242362,119.7964,13.325,13.313,20.0]
[1672787242761,56.34,13.324,13.313,20.0]
[1672787243292,119.7964,13.325,13.313,20.0]
[1672787244235,119.7964,13.325,13.308,11.08137784]
[1672787244236,76.34,13.324,13.308,11.08137784]
[1672787246441,56.34,13.324,13.308,61.33932473]
[1672787246652,119.7964,13.325,13.31,64.21]
[1672787246863,119.7964,13.325,13.311,76.39]
[1672787247183,119.7964,13.325,13.312,89.0382214]
[1672787247397,119.7964,13.325,13.313,76.38]
[1672787247609,119.7964,13.325,13.314,30.0]
[1672787247821,119.7964,13.325,13.315,20.0]
[1672787248027,119.7964,13.325,13.316,30.0]
[1672787248248,119.7964,13.325,13.317,20.0]
[1672787248457,56.28,13.337,13.317,20.0]
[1672787248671,108.2545,13.336,13.318,30.0]
[1672787248990,56.29,13.335,13.318,89.0382214]
[1672787249180,56.29,13.335,13.32,12.74]
[1672787249395,56.29,13.335,13.322,30.0]
[1672787249614,56.29,13.335,13.323,20.0]
[1672787249825,56.29,13.335,13.321,59.0382214]
[1672787250239,56.29,13.335,13.32,30.0]
[1672787250450,56.29,13.335,13.323,30.0]
[1672787250670,108.2545,13.336,13.324,20.0]
[1672787250990,108.2545,13.336,13.325,30.0]
[1672787251294,108.2545,13.336,13.326,20.0]
[1672787253196,108.2545,13.336,13.31,12.89]
[1672787253395,106.29,13.335,13.313,114.9667]
[1672787253711,76.29,13.335,13.315,11.08137784]
[1672787253920,56.29,13.335,13.32,12.74]
[1672787254327,56.29,13.335,13.32,23.82137784]
[1672787254542,56.29,13.335,13.321,50.0]
[1672787255695,20.0,13.334,13.321,41.08137784]
[1672787255904,56.3,13.333,13.321,41.08137784]
[1672787256434,56.3,13.333,13.318,30.0]
[1672787256640,56.3,13.333,13.316,30.0]
[1672787257060,56.3,13.333,13.317,11.08137784]
[1672787257589,56.3,13.333,13.318,50.38715474]
[1672787257803,20.0,13.334,13.319,30.0]
[1672787258007,56.3,13.333,13.319,41.08137784]
[1672787258332,56.3,13.333,13.319,91.46853258]
[1672787258542,56.29,13.335,13.32,11.08137784]
[1672787258755,56.29,13.335,13.32,31.08137784]
[1672787258968,56.29,13.335,13.321,30.0]
[1672787259174,108.2545,13.336,13.323,30.0]
[1672787259391,108.2545,13.336,13.324,20.0]
[1672787259599,108.2545,13.336,13.324,31.08137784]
[1672787259793,108.2545,13.336,13.325,41.08137784]
[1672787260123,108.2545,13.336,13.326,31.08137784]
[1672787260338,108.2545,13.336,13.327,30.0]
[1672787260525,108.2545,13.336,13.33,12.84]
[1672787260737,38.69253141,13.358,13.33,12.84]
[1672787260738,56.24,13.347,13.33,64.26]
[1672787260961,113.4823,13.347,13.331,90.61085652]
[1672787261154,56.24,13.346,13.331,152.0793891]